fUSD/lending_fUSD_20240423
["ID","MTS","AMOUNT","RATE_DAILY","PERIOD"]
[323307838,1713883844747,-526.61567953,0.00011738,2]
[323307839,1713883844756,-2355.34,0.00011738,2]
[323307841,1713883844765,-500.0,0.00011738,2]
[323307843,1713883844774,-500.0,0.00011738,2]
[323307845,1713883844783,-500.0,0.00011738,2]
[323307846,1713883844792,-500.0,0.00011738,2]
[323307848,1713883844801,-500.0,0.00011738,2]
[323307850,1713883844810,-500.0,0.00011738,2]
[323307852,1713883844819,-508.50112775,0.00011738,2]
[323307853,1713883844828,-500.0,0.00011738,2]
[323307855,1713883844837,-500.0,0.00011738,2]
[323307857,1713883844846,-500.0,0.00011738,2]
[323307859,1713883844855,-500.0,0.00011738,2]
[323307860,1713883844865,-500.0,0.00011738,2]
[323307862,1713883844874,-500.0,0.00011738,2]
[323307864,1713883844883,-500.0,0.00011738,2]
[323307866,1713883844893,-500.0,0.00011738,2]
[323307868,1713883844902,-500.0,0.00011738,2]
[323307869,1713883844911,-640.51,0.00011738,2]
[323307871,1713883844920,-500.0,0.00011738,2]
[323307873,1713883844934,-500.0,0.00011738,2]
[323307875,1713883844943,-507.72553441,0.00011738,2]
[323307876,1713883844954,-500.0,0.00011738,2]
[323307878,1713883844963,-500.0,0.00011738,2]
[323307880,1713883844973,-5644.48,0.00011738,2]
[323307882,1713883844983,-527.23328809,0.00011738,2]
[323307884,1713883844992,-172.94322661,0.00011738,2]
[323307885,1713883845001,-525.44,0.00011738,2]
[323307887,1713883845010,-613.33,0.00011738,2]
[323307889,1713883845019,-500.0,0.00011738,2]
[323307890,1713883845028,-500.0,0.00011738,2]
[323307892,1713883845037,-500.0,0.00011738,2]
[323307894,1713883845047,-1579.31,0.00011738,2]
[323307896,1713883845056,-340.70183336,0.00011738,2]
[323307897,1713883845065,-500.0,0.00011738,2]
[323307899,1713883845074,-500.0,0.00011738,2]
[323307901,1713883845083,-500.0,0.00011738,2]
[323307903,1713883845092,-500.0,0.00011738,2]
[323307904,1713883845101,-515.55,0.00011738,2]
[323307906,1713883845111,-500.0,0.00011738,2]
[323307908,1713883845121,-150.57940862,0.00011738,2]
[323307910,1713883845131,-504.15,0.00011738,2]
[323307912,1713883845140,-1916.55,0.00011738,2]
[323307913,1713883845151,-500.0,0.00011738,2]
[323307915,1713883845160,-500.0,0.00011738,2]
[323307917,1713883845169,-760.4,0.00011738,2]
[323307919,1713883845181,-500.0,0.00011738,2]
[323307921,1713883845191,-500.0,0.00011738,2]
[323307922,1713883845201,-500.0,0.00011738,2]
[323307924,1713883845210,-500.0,0.00011738,2]
[323307926,1713883845219,-500.0,0.00011738,2]
[323307928,1713883845229,-579.03,0.00011738,2]
[323307930,1713883845239,-500.0,0.00011738,2]
[323307931,1713883845248,-500.0,0.00011738,2]
[323307933,1713883845257,-500.0,0.00011738,2]
[323307935,1713883845267,-603.4,0.00011738,2]
[323307938,1713883845276,-500.0,0.00011738,2]
[323307940,1713883845285,-500.0,0.00011738,2]
[323307942,1713883845294,-500.0,0.00011738,2]
[323307944,1713883845303,-3769.52,0.00011738,2]
[323307946,1713883845313,-541.95,0.00011738,2]
[323307948,1713883845323,-500.0,0.00011738,2]
[323307950,1713883845331,-500.0,0.00011738,2]
[323307952,1713883845340,-500.0,0.00011738,2]
[323307954,1713883845352,-500.0,0.00011738,2]
[323307956,1713883845362,-502.13962029,0.00011738,2]
[323307958,1713883845372,-500.0,0.00011738,2]
[323307960,1713883845381,-1453.67,0.00011738,2]
[323307961,1713883845390,-500.0,0.00011738,2]
[323307962,1713883845399,-504.92681163,0.00011738,2]
[323307963,1713883845408,-732.36,0.00011738,2]
[323307964,1713883845417,-500.0,0.00011738,2]
[323307965,1713883845428,-500.0,0.00011738,2]
[323307966,1713883845437,-500.0,0.00011738,2]
[323307967,1713883845446,-1296.76,0.00011738,2]
[323307968,1713883845455,-500.0,0.00011738,2]
[323307969,1713883845464,-500.0,0.00011738,2]
[323307970,1713883845473,-500.0,0.00011738,2]
[323307971,1713883845482,-500.0,0.00011738,2]
[323307972,1713883845491,-500.0,0.00011738,2]
[323307973,1713883845499,-500.0,0.00011738,2]
[323307974,1713883845508,-500.0,0.00011738,2]
[323307977,1713883845518,-500.81445411,0.00011738,2]
[323307979,1713883845527,-570.07,0.00011738,2]
[323307981,1713883845536,-500.0,0.00011738,2]
[323307983,1713883845545,-500.0,0.00011738,2]
[323307984,1713883845555,-500.0,0.00011738,2]
[323307986,1713883845564,-500.0,0.00011738,2]
[323307988,1713883845574,-500.0,0.00011738,2]
[323308020,1713883845777,-500.0,0.00011738,2]
[323308022,1713883845786,-500.0,0.00011738,2]
[323308024,1713883845795,-1228.22,0.00011738,2]
[323308026,1713883845805,-1899.69,0.00011738,2]
[323308028,1713883845814,-613.72,0.00011738,2]
[323308030,1713883845823,-500.0,0.00011738,2]
[323308032,1713883845832,-500.0,0.00011738,2]
[323308034,1713883845842,-500.0,0.00011738,2]
[323308036,1713883845850,-1398.42,0.00011738,2]
[323308038,1713883845859,-1467.98,0.00011738,2]
[323308040,1713883845868,-500.0,0.00011738,2]
[323308042,1713883845878,-500.0,0.00011738,2]
[323308044,1713883845887,-508.289063,0.00011738,2]
[323308046,1713883845896,-500.0,0.00011738,2]
[323308048,1713883845905,-500.0,0.00011738,2]
[323308050,1713883845915,-500.0,0.00011738,2]
[323308052,1713883845924,-500.0,0.00011738,2]
[323308054,1713883845934,-500.0,0.00011738,2]
[323308056,1713883845943,-657.23,0.00011738,2]
[323308058,1713883845952,-500.0,0.00011738,2]
[323308060,1713883845961,-500.0,0.00011738,2]
[323308062,1713883845970,-507.69948382,0.00011738,2]
[323308065,1713883845981,-500.0,0.00011738,2]
[323308067,1713883845990,-464.96,0.00011738,2]
[323308069,1713883846000,-500.0,0.00011738,2]
[323308071,1713883846009,-500.0,0.00011738,2]
[323308073,1713883846017,-500.0,0.00011738,2]
[323308075,1713883846026,-500.0,0.00011738,2]
[323308077,1713883846035,-500.0,0.00011738,2]
[323308079,1713883846045,-532.95129536,0.00011738,2]
[323308081,1713883846054,-845.23,0.00011738,2]
[323308083,1713883846063,-505.43839281,0.00011738,2]
[323308085,1713883846073,-500.0,0.00011738,2]
[323308087,1713883846082,-500.0,0.00011738,2]
[323308089,1713883846091,-3505.96,0.00011738,2]
[323308091,1713883846100,-500.0,0.00011738,2]
[323308093,1713883846110,-500.0,0.00011738,2]
[323308095,1713883846119,-500.0,0.00011738,2]
[323308097,1713883846128,-322.51858577,0.00011738,2]
[323308099,1713883846137,-605.46,0.00011738,2]
[323308101,1713883846147,-500.0,0.00011738,2]
[323308102,1713883846156,-1598.51,0.00011738,2]
[323308104,1713883846166,-500.0,0.00011738,2]
[323308107,1713883846176,-500.0,0.00011738,2]
[323308108,1713883846185,-500.0,0.00011738,2]
[323308110,1713883846194,-500.0,0.00011738,2]
[323308113,1713883846205,-500.0,0.00011738,2]
[323308115,1713883846214,-1890.09,0.00011738,2]
[323308117,1713883846223,-500.0,0.00011738,2]
[323308119,1713883846232,-500.0,0.00011738,2]
[323308121,1713883846242,-500.0,0.00011738,2]
[323308122,1713883846252,-170.40447882,0.00011738,2]
[323308125,1713883846261,-550.38491266,0.00011738,2]
[323308126,1713883846271,-500.0,0.00011738,2]
[323308128,1713883846281,-997.68,0.00011738,2]
[323308131,1713883846291,-500.0,0.00011738,2]
[323308133,1713883846301,-500.0,0.00011738,2]
[323308135,1713883846310,-500.0,0.00011738,2]
[323308137,1713883846319,-500.0,0.00011738,2]
[323308138,1713883846328,-648.19174894,0.00011738,2]
[323308140,1713883846337,-500.0,0.00011738,2]
[323308143,1713883846347,-500.0,0.00011738,2]
[323308145,1713883846360,-517.56,0.00011738,2]
[323308147,1713883846370,-500.0,0.00011738,2]
[323308149,1713883846379,-500.0,0.00011738,2]
[323308151,1713883846388,-500.0,0.00011738,2]
[323308153,1713883846397,-500.0,0.00011738,2]
[323308155,1713883846406,-500.0,0.00011738,2]
[323308157,1713883846415,-500.0,0.00011738,2]
[323308159,1713883846426,-4472.16,0.00011738,2]
[323308161,1713883846435,-585.73843904,0.00011738,2]
[323308163,1713883846445,-500.0,0.00011738,2]
[323308165,1713883846455,-500.0,0.00011738,2]
[323308167,1713883846463,-500.0,0.00011738,2]
[323308169,1713883846473,-1838.03,0.00011738,2]
[323308171,1713883846482,-500.0,0.00011738,2]
[323308173,1713883846492,-591.59,0.00011738,2]
[323308175,1713883846501,-503.51906711,0.00011738,2]
[323308177,1713883846511,-500.0,0.00011738,2]
[323308179,1713883846519,-311.24937733,0.00011738,2]
[323308180,1713883846529,-500.0,0.00011738,2]
[323308182,1713883846538,-1883.98,0.00011738,2]
[323308184,1713883846548,-500.0,0.00011738,2]
[323308186,1713883846557,-517.47358289,0.00011738,2]
[323308188,1713883846566,-500.0,0.00011738,2]
[323308190,1713883846576,-1113.07,0.00011738,2]
[323308192,1713883846586,-500.0,0.00011738,2]
[323308194,1713883846595,-501.42621343,0.00011738,2]
[323308196,1713883846605,-500.0,0.00011738,2]
[323308198,1713883846614,-504.91754927,0.00011738,2]
[323308200,1713883846623,-500.0,0.00011738,2]
[323308202,1713883846633,-500.0,0.00011738,2]
[323308204,1713883846642,-500.0,0.00011738,2]
[323308206,1713883846651,-500.0,0.00011738,2]
[323308208,1713883846661,-500.0,0.00011738,2]
[323308210,1713883846670,-621.31,0.00011738,2]
[323308213,1713883846681,-12273.55,0.00011738,2]
[323308214,1713883846690,-503.29012844,0.00011738,2]
[323308217,1713883846700,-606.6,0.00011738,2]
[323308219,1713883846709,-658.46,0.00011738,2]
[323308221,1713883846718,-1102.77,0.00011738,2]
[323308223,1713883846727,-500.0,0.00011739,2]
[323308224,1713883846737,-500.0,0.00011739,2]
[323308226,1713883846746,-408.64273726,0.00011739,2]
[323308229,1713883846756,-500.0,0.00011739,2]
[323308230,1713883846765,-500.0,0.00011739,2]
[323308232,1713883846775,-500.0,0.00011739,2]
[323308235,1713883846784,-500.0,0.00011739,2]
[323308237,1713883846794,-500.0,0.00011739,2]
[323308239,1713883846803,-500.0,0.00011739,2]
[323308241,1713883846812,-500.0,0.00011739,2]
[323308243,1713883846821,-506.59525339,0.00011739,2]
[323308245,1713883846831,-500.0,0.00011739,2]
[323308246,1713883846840,-500.0,0.00011739,2]
[323308248,1713883846849,-500.0,0.00011739,2]
[323308251,1713883846859,-502.54093371,0.00011739,2]
[323308252,1713883846868,-283.96655707,0.00011739,2]
[323308254,1713883846878,-500.0,0.00011739,2]
[323308255,1713883846887,-500.0,0.00011739,2]
[323308256,1713883846896,-500.0,0.00011739,2]
[323308257,1713883846905,-500.0,0.00011739,2]
[323308258,1713883846914,-500.0,0.00011739,2]
[323308259,1713883846924,-156.34497371,0.00011739,2]
[323308260,1713883846933,-500.0,0.00011739,2]
[323308261,1713883846943,-500.0,0.00011739,2]
[323308262,1713883846952,-500.0,0.00011739,2]
[323308263,1713883846961,-500.0,0.00011739,2]
[323308264,1713883846970,-500.0,0.00011739,2]
[323308265,1713883846980,-500.0,0.00011739,2]
[323308268,1713883846989,-500.0,0.00011739,2]
[323308269,1713883846999,-500.0,0.00011739,2]
[323308271,1713883847008,-500.0,0.00011739,2]
[323308273,1713883847018,-500.0,0.00011739,2]
[323308275,1713883847027,-715.82,0.00011739,2]
[323308277,1713883847036,-500.0,0.00011739,2]
[323308279,1713883847045,-500.0,0.00011739,2]
[323308281,1713883847054,-500.0,0.00011739,2]
[323308283,1713883847064,-500.0,0.00011739,2]
[323308285,1713883847073,-500.0,0.00011739,2]
[323308287,1713883847082,-500.0,0.00011739,2]
[323308289,1713883847091,-500.0,0.00011739,2]
[323308291,1713883847100,-500.0,0.00011739,2]
[323308293,1713883847109,-500.0,0.00011739,2]
[323308294,1713883847119,-500.0,0.00011739,2]
[323308295,1713883847128,-500.0,0.00011739,2]
[323308296,1713883847138,-713.81,0.00011739,2]
[323308297,1713883847147,-873.94,0.00011739,2]
[323308298,1713883847159,-178.17,0.00011739,2]
[323308299,1713883847168,-500.0,0.00011739,2]
[323308300,1713883847178,-500.0,0.00011739,2]
[323308301,1713883847188,-500.0,0.00011739,2]
[323308302,1713883847197,-500.0,0.00011739,2]
[323308304,1713883847206,-417.90305662,0.00011739,2]
[323308305,1713883847215,-500.0,0.00011739,2]
[323308306,1713883847227,-500.0,0.00011739,2]
[323308307,1713883847237,-500.0,0.00011739,2]
[323308308,1713883847247,-323.15403618,0.00011739,2]
[323308309,1713883847256,-500.0,0.00011739,2]
[323308310,1713883847266,-500.0,0.00011739,2]
[323308311,1713883847276,-500.0,0.00011739,2]
[323308312,1713883847286,-500.0,0.00011739,2]
[323308313,1713883847296,-709.86,0.00011739,2]
[323308314,1713883847306,-500.0,0.00011739,2]
[323308315,1713883847316,-500.0,0.00011739,2]
[323308316,1713883847325,-500.0,0.00011739,2]
[323308317,1713883847337,-1017.78,0.00011739,2]
[323308318,1713883847349,-500.0,0.00011739,2]
[323308319,1713883847358,-500.0,0.00011739,2]
[323308320,1713883847368,-500.0,0.00011739,2]
[323308321,1713883847378,-500.0,0.00011739,2]
[323308322,1713883847387,-500.0,0.00011739,2]
[323308323,1713883847397,-500.0,0.00011739,2]
[323308324,1713883847406,-500.0,0.00011739,2]
[323308325,1713883847415,-500.0,0.00011739,2]
[323308326,1713883847427,-500.0,0.00011739,2]
[323308327,1713883847437,-500.0,0.00011739,2]
[323308328,1713883847446,-500.0,0.00011739,2]
[323308329,1713883847456,-506.19804022,0.00011739,2]
[323308330,1713883847465,-797.52,0.00011739,2]
[323308331,1713883847474,-500.0,0.00011739,2]
[323308332,1713883847483,-293.53057662,0.00011739,2]
[323308333,1713883847493,-500.0,0.00011739,2]
[323308334,1713883847502,-500.0,0.00011739,2]
[323308335,1713883847512,-500.0,0.00011739,2]
[323308336,1713883847522,-500.0,0.00011739,2]
[323308337,1713883847531,-500.0,0.00011739,2]
[323308338,1713883847540,-504.77474163,0.00011739,2]
[323308339,1713883847550,-500.0,0.00011739,2]
[323308340,1713883847559,-500.0,0.00011739,2]
[323308341,1713883847569,-500.0,0.00011739,2]
[323308342,1713883847578,-500.0,0.00011739,2]
[323308343,1713883847587,-686.73,0.00011739,2]
[323308344,1713883847597,-500.0,0.00011739,2]
[323308345,1713883847606,-500.0,0.00011739,2]
[323308346,1713883847615,-500.0,0.00011739,2]
[323308347,1713883847625,-521.51,0.00011739,2]
[323308348,1713883847634,-500.0,0.00011739,2]
[323308349,1713883847643,-500.0,0.00011739,2]
[323308350,1713883847653,-500.0,0.00011739,2]
[323308351,1713883847663,-1029.54,0.00011739,2]
[323308352,1713883847673,-500.0,0.00011739,2]
[323308353,1713883847682,-526.39219186,0.00011739,2]
[323308354,1713883847692,-500.0,0.00011739,2]
[323308355,1713883847701,-500.0,0.00011739,2]
[323308356,1713883847710,-503.54199264,0.00011739,2]
[323308357,1713883847719,-1207.41,0.00011739,2]
[323308358,1713883847728,-500.49764632,0.00011739,2]
[323308359,1713883847738,-532.44,0.00011739,2]
[323308360,1713883847748,-500.0,0.00011739,2]
[323308361,1713883847758,-150.48399934,0.00011739,2]
[323308362,1713883847768,-556.68,0.00011739,2]
[323308363,1713883847777,-500.0,0.00011739,2]
[323308364,1713883847787,-500.0,0.00011739,2]
[323308365,1713883847796,-500.0,0.00011739,2]
[323308366,1713883847805,-500.0,0.00011739,2]
[323308367,1713883847815,-500.0,0.00011739,2]
[323308368,1713883847824,-500.0,0.00011739,2]
[323308369,1713883847834,-501.03001252,0.00011739,2]
[323308370,1713883847844,-500.0,0.00011739,2]
[323308371,1713883847853,-500.99106828,0.00011739,2]
[323308372,1713883847863,-500.0,0.00011739,2]
[323308373,1713883847872,-708.23,0.00011739,2]
[323308374,1713883847882,-500.93715424,0.00011739,2]
[323308375,1713883847892,-500.0,0.00011739,2]
[323308376,1713883847904,-504.10925535,0.00011739,2]
[323308377,1713883847913,-500.0,0.00011739,2]
[323308378,1713883847922,-500.0,0.00011739,2]
[323308379,1713883847932,-500.0,0.00011739,2]
[323308380,1713883847941,-275.19600973,0.00011739,2]
[323308381,1713883847950,-500.0,0.00011739,2]
[323308382,1713883847960,-500.0,0.00011739,2]
[323308383,1713883847973,-500.0,0.00011739,2]
[323308384,1713883847983,-500.0,0.00011739,2]
[323308385,1713883847992,-500.0,0.00011739,2]
[323308386,1713883848001,-500.0,0.00011739,2]
[323308387,1713883848010,-500.0,0.00011739,2]
[323308388,1713883848019,-366.99767048,0.00011739,2]
[323308389,1713883848028,-500.0,0.00011739,2]
[323308390,1713883848039,-500.0,0.00011739,2]
[323308391,1713883848048,-500.0,0.00011739,2]
[323308392,1713883848058,-152.297502,0.00011739,2]
[323308393,1713883848067,-500.44533309,0.00011739,2]
[323308394,1713883848076,-541.71,0.00011739,2]
[323308395,1713883848085,-500.0,0.00011739,2]
[323308396,1713883848094,-500.0,0.00011739,2]
[323308397,1713883848103,-501.80718412,0.00011739,2]
[323308398,1713883848113,-227.60687317,0.00011739,2]
[323308399,1713883848123,-500.0,0.00011739,2]
[323308400,1713883848132,-500.0,0.00011739,2]
[323308401,1713883848141,-535.82973445,0.00011739,2]
[323308402,1713883848150,-500.0,0.00011739,2]
[323308403,1713883848160,-500.0,0.00011739,2]
[323308404,1713883848169,-500.0,0.00011739,2]
[323308405,1713883848179,-500.0,0.00011739,2]
[323308406,1713883848189,-500.0,0.00011739,2]
[323308407,1713883848199,-500.0,0.00011739,2]
[323308408,1713883848208,-243.16424071,0.00011739,2]
[323308409,1713883848218,-500.0,0.00011739,2]
[323308410,1713883848228,-500.0,0.00011739,2]
[323308411,1713883848237,-500.0,0.00011739,2]
[323308412,1713883848247,-500.0,0.00011739,2]
[323308413,1713883848256,-500.0,0.00011739,2]
[323308414,1713883848265,-500.0,0.00011739,2]
[323308415,1713883848275,-500.0,0.00011739,2]
[323308416,1713883848284,-500.0,0.00011739,2]
[323308417,1713883848295,-500.0,0.00011739,2]
[323308418,1713883848304,-504.45009408,0.00011739,2]
[323308419,1713883848315,-500.0,0.00011739,2]
[323308420,1713883848324,-513.67,0.00011739,2]
[323308421,1713883848333,-500.0,0.00011739,2]
[323308422,1713883848344,-500.0,0.00011739,2]
[323308423,1713883848354,-500.0,0.00011739,2]
[323308424,1713883848366,-500.0,0.00011739,2]
[323308425,1713883848375,-500.0,0.00011739,2]
[323308426,1713883848385,-500.0,0.00011739,2]
[323308427,1713883848397,-500.0,0.00011739,2]
[323308428,1713883848407,-500.0,0.00011739,2]
[323308429,1713883848417,-500.0,0.00011739,2]
[323308430,1713883848427,-501.39591085,0.00011739,2]
[323308431,1713883848439,-500.0,0.00011739,2]
[323308432,1713883848449,-641.66,0.00011739,2]
[323308433,1713883848458,-500.0,0.00011739,2]
[323308434,1713883848468,-500.0,0.00011739,2]
[323308435,1713883848478,-500.0,0.00011739,2]
[323308436,1713883848487,-500.0,0.00011739,2]
[323308437,1713883848497,-500.0,0.00011739,2]
[323308438,1713883848507,-504.25110574,0.00011739,2]
[323308439,1713883848516,-568.07765721,0.00011739,2]
[323308440,1713883848527,-500.0,0.00011739,2]
[323308441,1713883848536,-500.0,0.00011739,2]
[323308442,1713883848546,-500.0,0.00011739,2]
[323308443,1713883848555,-594.49,0.00011739,2]
[323308444,1713883848565,-500.0,0.00011739,2]
[323308445,1713883848574,-500.0,0.00011739,2]
[323308446,1713883848584,-172.80672271,0.00011739,2]
[323308447,1713883848593,-500.0,0.00011739,2]
[323308448,1713883848603,-610.82120517,0.00011739,2]
[323308449,1713883848612,-517.825103,0.00011739,2]
[323308450,1713883848622,-546.95433286,0.00011739,2]
[323308451,1713883848631,-500.76115315,0.00011739,2]
[323308452,1713883848641,-500.0,0.00011739,2]
[323308453,1713883848650,-500.0,0.00011739,2]
[323308454,1713883848661,-500.0,0.00011739,2]
[323308455,1713883848670,-508.07850548,0.00011739,2]
[323308456,1713883848680,-500.0,0.00011739,2]
[323308457,1713883848689,-500.0,0.00011739,2]
[323308458,1713883848699,-503.80902002,0.00011739,2]
[323308459,1713883848708,-500.0,0.00011739,2]
[323308460,1713883848717,-500.0,0.00011739,2]
[323308461,1713883848727,-503.24586189,0.00011739,2]
[323308462,1713883848736,-500.0,0.00011739,2]
[323308463,1713883848746,-502.35711965,0.00011739,2]
[323308464,1713883848755,-500.0,0.00011739,2]
[323308465,1713883848765,-503.31770367,0.00011739,2]
[323308466,1713883848774,-500.0,0.00011739,2]
[323308467,1713883848783,-500.0,0.00011739,2]
[323308468,1713883848794,-500.0,0.00011739,2]
[323308469,1713883848803,-500.0,0.00011739,2]
[323308470,1713883848814,-503.95176208,0.00011739,2]
[323308471,1713883848823,-500.0,0.00011739,2]
[323308472,1713883848834,-500.0,0.00011739,2]
[323308473,1713883848843,-500.0,0.00011739,2]
[323308474,1713883848852,-504.39702051,0.00011739,2]
[323308475,1713883848862,-500.0,0.00011739,2]
[323308476,1713883848871,-500.0,0.00011739,2]
[323308477,1713883848880,-500.0,0.00011739,2]
[323308478,1713883848890,-501.08,0.00011739,2]
[323308479,1713883848899,-500.0,0.00011739,2]
[323308480,1713883848909,-510.9165463,0.00011739,2]
[323308481,1713883848918,-500.0,0.00011739,2]
[323308482,1713883848927,-500.0,0.00011739,2]
[323308483,1713883848937,-500.0,0.00011739,2]
[323308484,1713883848946,-500.0,0.00011739,2]
[323308485,1713883848956,-2002.35626629,0.00011739,2]
[323308486,1713883848965,-501.84892442,0.00011739,2]
[323308487,1713883848975,-500.0,0.00011739,2]
[323308488,1713883848984,-500.0,0.00011739,2]
[323308489,1713883848994,-500.0,0.00011739,2]
[323308490,1713883849004,-625.26588897,0.00011739,2]
[323308491,1713883849013,-498.11933615,0.00011739,2]
[323308492,1713883849022,-500.0,0.00011739,2]
[323308493,1713883849032,-525.83150384,0.00011739,2]
[323308494,1713883849040,-500.0,0.00011739,2]
[323308495,1713883849049,-500.0,0.00011739,2]
[323308496,1713883849059,-500.0,0.00011739,2]
[323308497,1713883849068,-518.42855253,0.00011739,2]
[323308498,1713883849077,-500.0,0.00011739,2]
[323308499,1713883849086,-1089.17,0.00011739,2]
[323308500,1713883849095,-500.0,0.00011739,2]
[323308501,1713883849105,-548.63995003,0.00011739,2]
[323308502,1713883849114,-503.19920354,0.00011739,2]
[323308503,1713883849124,-500.0,0.00011739,2]
[323308504,1713883849133,-500.0,0.00011739,2]
[323308505,1713883849142,-503.34104853,0.00011739,2]
[323308506,1713883849151,-500.0,0.00011739,2]
[323308507,1713883849161,-500.0,0.00011739,2]
[323308508,1713883849170,-500.0,0.00011739,2]
[323308509,1713883849180,-500.0,0.00011739,2]
[323308510,1713883849189,-500.0,0.00011739,2]
[323308511,1713883849199,-500.0,0.00011739,2]
[323308512,1713883849208,-500.0,0.00011739,2]
[323308513,1713883849217,-500.0,0.00011739,2]
[323308514,1713883849226,-500.0,0.00011739,2]
[323308515,1713883849236,-500.0,0.00011739,2]
[323308516,1713883849246,-500.0,0.00011739,2]
[323308517,1713883849255,-500.0,0.00011739,2]
[323308518,1713883849264,-501.50915921,0.00011739,2]
[323308519,1713883849274,-503.35943438,0.00011739,2]
[323308520,1713883849283,-500.0,0.00011739,2]
[323308521,1713883849293,-500.0,0.00011739,2]
[323308522,1713883849302,-504.44998,0.00011739,2]
[323308523,1713883849311,-500.24757571,0.00011739,2]
[323308524,1713883849321,-500.0,0.00011739,2]
[323308525,1713883849330,-500.0,0.00011739,2]
[323308526,1713883849339,-500.0,0.00011739,2]
[323308527,1713883849353,-276.23467757,0.00011739,2]
[323308528,1713883849361,-500.0,0.00011739,2]
[323308529,1713883849371,-500.0,0.00011739,2]
[323308530,1713883849380,-501.28615798,0.00011739,2]
[323308531,1713883849390,-500.0,0.00011739,2]
[323308532,1713883849400,-500.0,0.00011739,2]
[323308533,1713883849409,-500.0,0.00011739,2]
[323308534,1713883849419,-500.0,0.00011739,2]
[323308535,1713883849430,-500.0,0.00011739,2]
[323308536,1713883849441,-500.0,0.00011739,2]
[323308537,1713883849449,-500.0,0.00011739,2]
[323308538,1713883849459,-500.0,0.00011739,2]
[323308539,1713883849468,-569.91,0.00011739,2]
[323308540,1713883849477,-501.82531678,0.00011739,2]
[323308541,1713883849486,-505.15724034,0.00011739,2]
[323308542,1713883849496,-500.0,0.00011739,2]
[323308543,1713883849505,-500.0,0.00011739,2]
[323308544,1713883849514,-500.0,0.00011739,2]
[323308545,1713883849524,-500.0,0.00011739,2]
[323308546,1713883849533,-500.0,0.00011739,2]
[323308547,1713883849543,-500.0,0.00011739,2]
[323308548,1713883849552,-500.0,0.00011739,2]
[323308549,1713883849562,-500.0,0.00011739,2]
[323308550,1713883849571,-519.69525324,0.00011739,2]
[323308551,1713883849580,-500.0,0.00011739,2]
[323308552,1713883849589,-500.0,0.00011739,2]
[323308553,1713883849599,-500.0,0.00011739,2]
[323308554,1713883849608,-500.0,0.00011739,2]
[323308555,1713883849618,-500.0,0.00011739,2]
[323308556,1713883849628,-500.0,0.00011739,2]
[323308557,1713883849637,-238.86270938,0.00011739,2]
[323308558,1713883849646,-500.0,0.00011739,2]
[323308559,1713883849656,-500.0,0.00011739,2]
[323308560,1713883849665,-500.0,0.00011739,2]
[323308561,1713883849674,-500.0,0.00011739,2]
[323308562,1713883849683,-500.0,0.00011739,2]